fUST/lending_fUST_20241022
["ID","MTS","AMOUNT","RATE_DAILY","PERIOD"]
[340657080,1729608651062,-801.67,0.00016438,2]
[340657081,1729608651071,-287.77831,0.00016438,2]
[340657082,1729608651081,-287.77831,0.00016438,2]
[340657083,1729608651091,-500.0,0.00016438,2]
[340657084,1729608651101,-500.0,0.00016438,2]
[340657085,1729608651111,-927.15,0.00016438,2]
[340657086,1729608651301,-572.57,0.00016438,2]
[340657087,1729608651312,-6799.78,0.00016438,2]
[340657088,1729608651322,-678.82,0.00016438,2]
[340657089,1729608651332,-152.632459,0.00016438,2]
[340657090,1729608651341,-229.51479778,0.00016438,2]
[340657091,1729608651351,-152.632459,0.00016438,2]
[340657092,1729608651360,-300.0,0.00016438,2]
[340657093,1729608651370,-152.632459,0.00016438,2]
[340657094,1729608651379,-500.0,0.00016438,2]
[340657095,1729608651388,-500.0,0.00016438,2]
[340657096,1729608651398,-571.53,0.00016438,2]
[340657097,1729608651407,-152.632459,0.00016438,2]
[340657098,1729608651417,-342.40718795,0.00016438,2]
[340657099,1729608651427,-500.0,0.00016438,2]
[340657100,1729608651436,-1244.47,0.00016438,2]
[340657101,1729608651446,-150.09331547,0.00016438,2]
[340657102,1729608651456,-500.0,0.00016438,2]
[340657103,1729608651465,-500.0,0.00016438,2]
[340657104,1729608651476,-500.0,0.00016438,2]
[340657105,1729608651486,-786.55,0.00016438,2]
[340657106,1729608651496,-504.72,0.00016438,2]
[340657107,1729608651506,-642.41,0.00016438,2]
[340657108,1729608651515,-150.81983904,0.00016438,2]
[340657109,1729608651525,-500.0,0.00016438,2]
[340657110,1729608651535,-966.55,0.00016438,2]
[340657111,1729608651544,-500.0,0.00016438,2]
[340657112,1729608651554,-1529.93,0.00016438,2]
[340657113,1729608651563,-770.81,0.00016438,2]
[340657114,1729608651573,-151.0,0.00016438,2]
[340657115,1729608651582,-500.0,0.00016438,2]
[340657116,1729608651592,-151.0,0.00016438,2]
[340657117,1729608651602,-151.0,0.00016438,2]
[340657118,1729608651611,-404.42528,0.00016438,2]
[340657119,1729608651621,-404.42528,0.00016438,2]
[340657120,1729608651631,-151.0,0.00016438,2]
[340657121,1729608651640,-546.62,0.00016438,2]
[340657122,1729608651649,-504.79050931,0.00016438,2]
[340657123,1729608651658,-151.0,0.00016438,2]
[340657124,1729608651668,-161.629321,0.00016438,2]
[340657125,1729608651677,-404.42528,0.00016438,2]
[340657126,1729608651687,-161.629321,0.00016438,2]
[340657127,1729608651696,-404.42528,0.00016438,2]
[340657128,1729608651707,-151.0,0.00016438,2]
[340657129,1729608651716,-151.0,0.00016438,2]
[340657130,1729608651727,-500.0,0.00016438,2]
[340657131,1729608651736,-826.27,0.00016438,2]
[340657132,1729608651746,-548.04,0.00016438,2]
[340657133,1729608651756,-161.629321,0.00016438,2]
[340657134,1729608651769,-161.629321,0.00016438,2]
[340657135,1729608651778,-151.0,0.00016438,2]
[340657136,1729608651788,-500.0,0.00016438,2]
[340657137,1729608651798,-166.042295,0.00016438,2]
[340657138,1729608651810,-774.8,0.00016438,2]
[340657139,1729608651822,-500.0,0.00016438,2]
[340657140,1729608651843,-500.0,0.00016438,2]
[340657141,1729608651857,-2089.2,0.00016438,2]
[340657142,1729608651867,-151.0,0.00016438,2]
[340657143,1729608651878,-151.0,0.00016438,2]
[340657144,1729608651888,-200.0,0.00016438,2]
[340657145,1729608651899,-500.0,0.00016438,2]
[340657146,1729608651910,-774.02,0.00016438,2]
[340657147,1729608651920,-500.0,0.00016438,2]
[340657148,1729608651931,-500.0,0.00016438,2]
[340657149,1729608651942,-500.0,0.00016438,2]
[340657150,1729608651953,-559.19,0.00016438,2]
[340657151,1729608651963,-500.0,0.00016438,2]
[340657152,1729608651974,-500.0,0.00016438,2]
[340657153,1729608651983,-500.0,0.00016438,2]
[340657154,1729608651994,-537.03,0.00016438,2]
[340657155,1729608652004,-500.0,0.00016438,2]
[340657156,1729608652014,-1110.8,0.00016438,2]
[340657157,1729608652024,-500.0,0.00016438,2]
[340657158,1729608652034,-1001.286898,0.00016438,2]
[340657159,1729608652044,-1001.286898,0.00016438,2]
[340657160,1729608652054,-921.08,0.00016438,2]
[340657161,1729608652064,-558.44,0.00016438,2]
[340657162,1729608652075,-1001.286898,0.00016438,2]
[340657163,1729608652086,-1001.286898,0.00016438,2]
[340657164,1729608652096,-630.67,0.00016438,2]
[340657165,1729608652108,-3783.04,0.00016438,2]
[340657166,1729608652117,-500.0,0.00016438,2]
[340657167,1729608652128,-975.34,0.00016438,2]
[340657168,1729608652139,-500.0,0.00016438,2]
[340657169,1729608652150,-557.35,0.00016438,2]
[340657170,1729608652160,-549.72,0.00016438,2]
[340657171,1729608652170,-249.840928,0.00016438,2]
[340657172,1729608652180,-249.840928,0.00016438,2]
[340657173,1729608652189,-500.0,0.00016438,2]
[340657174,1729608652199,-151.0,0.00016438,2]
[340657175,1729608652209,-249.840928,0.00016438,2]
[340657176,1729608652219,-151.0,0.00016438,2]
[340657177,1729608652230,-249.840928,0.00016438,2]
[340657178,1729608652240,-710.19,0.00016438,2]
[340657179,1729608652250,-872.91,0.00016438,2]
[340657180,1729608652260,-500.0,0.00016438,2]
[340657181,1729608652271,-500.0,0.00016438,2]
[340657182,1729608652283,-500.0,0.00016438,2]
[340657183,1729608652293,-1251.38,0.00016438,2]
[340657184,1729608652303,-204.434466,0.00016438,2]
[340657185,1729608652312,-204.434466,0.00016438,2]
[340657186,1729608652322,-766.024157,0.00016438,2]
[340657187,1729608652332,-766.024157,0.00016438,2]
[340657188,1729608652343,-581.55,0.00016438,2]
[340657189,1729608652353,-204.434466,0.00016438,2]
[340657190,1729608652363,-204.434466,0.00016438,2]
[340657191,1729608652372,-500.0,0.00016438,2]
[340657192,1729608652382,-8130.08,0.00016438,2]
[340657193,1729608652391,-766.024157,0.00016438,2]
[340657194,1729608652401,-766.024157,0.00016438,2]
[340657195,1729608652411,-500.0,0.00016438,2]
[340657196,1729608652422,-500.0,0.00016438,2]
[340657197,1729608652432,-537.93,0.00016438,2]
[340657198,1729608652447,-500.32988118,0.00016438,2]
[340657199,1729608652459,-151.0,0.00016438,2]
[340657200,1729608652470,-151.0,0.00016438,2]
[340657201,1729608652484,-151.0,0.00016438,2]
[340657202,1729608652495,-500.0,0.00016438,2]
[340657203,1729608652504,-502.83486527,0.00016438,2]
[340657204,1729608652515,-500.0,0.00016438,2]
[340657205,1729608652525,-500.0,0.00016438,2]
[340657206,1729608652535,-500.0,0.00016438,2]
[340657207,1729608652546,-500.0,0.00016438,2]
[340657208,1729608652556,-522.82,0.00016438,2]
[340657209,1729608652566,-746.8,0.00016438,2]
[340657210,1729608652576,-578.53,0.00016438,2]
[340657211,1729608652586,-501.76169157,0.00016438,2]
[340657212,1729608652596,-501.25363604,0.00016438,2]
[340657213,1729608652606,-151.0,0.00016438,2]
[340657214,1729608652615,-677.46,0.00016438,2]
[340657215,1729608652626,-151.0,0.00016438,2]
[340657216,1729608652637,-501.19692512,0.00016438,2]
[340657217,1729608652650,-151.0,0.00016438,2]
[340657218,1729608652660,-151.0,0.00016438,2]
[340657219,1729608652669,-151.0,0.00016438,2]
[340657220,1729608652680,-3000.0,0.0001644,2]
[340657221,1729608652689,-3000.0,0.0001645,2]
[340657222,1729608652699,-3000.0,0.0001646,2]
[340657223,1729608652709,-3000.0,0.0001647,2]
[340657224,1729608652720,-3000.0,0.0001648,2]
[340657225,1729608652733,-198.405953,0.00016481,2]
[340657226,1729608652742,-497.742527,0.00016481,2]
[340657227,1729608652752,-311.728619,0.00016481,2]
[340657228,1729608652765,-513.12499,0.00016481,2]
[340657229,1729608652774,-3500.0,0.00016486,2]
[340657230,1729608652784,-3000.0,0.0001649,2]
[340657231,1729608652794,-3000.0,0.000165,2]
[340657232,1729608652805,-3000.0,0.0001651,2]
[340657233,1729608652815,-3000.0,0.0001652,2]
[340657234,1729608652827,-7951.44137154,0.00016529,2]
[340657235,1729608652837,-3000.0,0.0001653,2]
[340657236,1729608652848,-325.764258,0.00016537,2]
[340657237,1729608652859,-325.764258,0.00016537,2]
[340657238,1729608652869,-361.488313,0.00016537,2]
[340657239,1729608652879,-361.488313,0.00016537,2]
[340657240,1729608652892,-151.0,0.00016537,2]
[340657241,1729608652902,-3000.0,0.0001654,2]
[340657242,1729608652912,-153.0,0.00016548,2]
[340657243,1729608652923,-166.686702,0.00016549,2]
[340657244,1729608652934,-3000.0,0.0001655,2]
[340657245,1729608652945,-823.0,0.00016552,2]
[340657246,1729608652955,-917.2815888,0.00016555,2]
[340657247,1729608652966,-3000.0,0.0001656,2]
[340657248,1729608652978,-3000.0,0.0001657,2]
[340657249,1729608652988,-3000.0,0.0001658,2]
[340657250,1729608652999,-3000.0,0.0001659,2]
[340657251,1729608653009,-151.0,0.00016591,2]
[340657252,1729608653019,-151.0,0.00016591,2]
[340657253,1729608653029,-151.0,0.00016591,2]
[340657254,1729608653039,-151.0,0.00016591,2]
[340657255,1729608653049,-151.0,0.00016591,2]
[340657256,1729608653060,-151.0,0.00016591,2]
[340657257,1729608653070,-151.0,0.00016591,2]
[340657258,1729608653079,-3000.0,0.000166,2]
[340657259,1729608653089,-3000.0,0.0001661,2]
[340657260,1729608653100,-3000.0,0.0001662,2]
[340657261,1729608653110,-3000.0,0.0001663,2]
[340657262,1729608653120,-3986.542216,0.0001664,2]
[340657263,1729608653130,-160.44296951,0.00016643,5]
[340657264,1729608653140,-198.405953,0.00016684,2]
[340657265,1729608653150,-497.742527,0.00016684,2]
[340657266,1729608653160,-311.728619,0.00016684,2]
[340657267,1729608653169,-513.12499,0.00016684,2]
[340657268,1729608653180,-500.0,0.00016712,2]
[340657269,1729608653190,-500.0,0.00016712,2]
[340657270,1729608653200,-500.0,0.00016712,2]
[340657271,1729608653209,-325.764258,0.00016712,2]
[340657272,1729608653219,-325.764258,0.00016712,2]
[340657273,1729608653231,-500.0,0.00016712,2]
[340657274,1729608653240,-500.0,0.00016712,2]
[340657275,1729608653249,-500.0,0.00016712,2]
[340657276,1729608653260,-500.0,0.00016712,2]
[340657277,1729608653271,-500.0,0.00016712,2]
[340657278,1729608653280,-151.0,0.00016712,2]
[340657279,1729608653290,-493.01307259,0.00016712,2]
[340657280,1729608653300,-500.0,0.00016712,2]
[340657281,1729608653310,-151.0,0.00016712,2]
[340657282,1729608653320,-500.0,0.00016712,2]
[340657283,1729608653330,-162.437624,0.00016712,2]
[340657284,1729608653339,-500.0,0.00016712,2]
[340657285,1729608653348,-665.58,0.00016712,2]
[340657286,1729608653358,-826.35,0.00016712,2]
[340657287,1729608653367,-500.0,0.00016712,2]
[340657288,1729608653377,-500.0,0.00016712,2]
[340657289,1729608653387,-151.0,0.00016712,2]
[340657290,1729608653396,-500.0,0.00016712,2]
[340657291,1729608653406,-1000.0,0.00016712,2]
[340657292,1729608653416,-495.94534012,0.00016712,2]
[340657293,1729608653425,-201.31300505,0.00016712,2]
[340657294,1729608653435,-500.0,0.00016712,2]
[340657295,1729608653444,-567.91,0.00016712,2]
[340657296,1729608653453,-151.0,0.00016712,2]
[340657297,1729608653463,-500.0,0.00016712,2]
[340657298,1729608653472,-500.0,0.00016712,2]
[340657299,1729608653482,-500.0,0.00016712,2]
[340657300,1729608653492,-378.63523838,0.00016712,2]
[340657301,1729608653502,-500.0,0.00016712,2]
[340657302,1729608653512,-500.0,0.00016712,2]
[340657303,1729608653523,-151.0,0.00016712,2]
[340657304,1729608653533,-151.0,0.00016712,2]
[340657305,1729608653544,-151.0,0.00016712,2]
[340657306,1729608653553,-554.79349862,0.00016712,2]
[340657307,1729608653562,-508.18562965,0.00016712,2]
[340657308,1729608653572,-500.0,0.00016712,2]
[340657309,1729608653582,-151.0,0.00016712,2]
[340657310,1729608653592,-151.0,0.00016712,2]
[340657311,1729608653601,-500.0,0.00016712,2]
[340657312,1729608653610,-614.319126,0.00016712,2]
[340657313,1729608653621,-500.0,0.00016712,2]
[340657314,1729608653631,-151.0,0.00016712,2]
[340657315,1729608653642,-508.04618628,0.00016712,2]
[340657316,1729608653652,-151.0,0.00016712,2]
[340657317,1729608653662,-500.0,0.00016712,2]
[340657318,1729608653672,-500.0,0.00016712,2]
[340657319,1729608653680,-713.81,0.00016712,2]
[340657320,1729608653796,-500.0,0.00016712,2]
[340657321,1729608653808,-361.488313,0.00016712,2]
[340657322,1729608653817,-500.53134249,0.00016712,2]
[340657323,1729608653827,-500.0,0.00016712,2]
[340657324,1729608653837,-500.0,0.00016712,2]
[340657325,1729608653846,-660.77,0.00016712,2]
[340657326,1729608653855,-361.488313,0.00016712,2]
[340657327,1729608653864,-500.0,0.00016712,2]
[340657328,1729608653873,-500.0,0.00016712,2]
[340657329,1729608653882,-551.66,0.00016712,2]
[340657330,1729608653892,-754.58,0.00016712,2]
[340657331,1729608653901,-1146.073418,0.00016712,2]
[340657332,1729608653911,-599.85773726,0.00016712,2]
[340657333,1729608653922,-1146.073418,0.00016712,2]
[340657334,1729608653933,-795.47,0.00016712,2]
[340657335,1729608653942,-500.0,0.00016712,2]
[340657336,1729608653951,-500.0,0.00016712,2]
[340657337,1729608653961,-749.34,0.00016712,2]
[340657338,1729608653970,-500.0,0.00016712,2]
[340657339,1729608653980,-151.0,0.00016712,2]
[340657340,1729608653990,-383.38720688,0.00016712,2]
[340657341,1729608653999,-500.0,0.00016712,2]
[340657342,1729608654008,-500.0,0.00016712,2]
[340657343,1729608654018,-500.0,0.00016712,2]
[340657344,1729608654027,-500.0,0.00016712,2]
[340657345,1729608654036,-509.36394963,0.00016712,2]
[340657346,1729608654046,-500.0,0.00016712,2]
[340657347,1729608654055,-626.98,0.00016712,2]
[340657348,1729608654065,-500.0,0.00016712,2]
[340657349,1729608654075,-151.0,0.00016712,2]
[340657350,1729608654084,-501.17532251,0.00016712,2]
[340657351,1729608654094,-500.0,0.00016712,2]
[340657352,1729608654103,-500.0,0.00016712,2]
[340657353,1729608654114,-1265.04,0.00016712,2]
[340657354,1729608654124,-500.0,0.00016712,2]
[340657355,1729608654137,-500.0,0.00016712,2]
[340657356,1729608654147,-624.21,0.00016712,2]
[340657357,1729608654157,-172.647933,0.00016712,2]
[340657358,1729608654166,-614.3,0.00016712,2]
[340657359,1729608654176,-172.647933,0.00016712,2]
[340657360,1729608654185,-500.0,0.00016712,2]
[340657361,1729608654195,-348.9229308,0.00016712,2]
[340657362,1729608654204,-516.71,0.00016712,2]
[340657363,1729608654213,-500.0,0.00016712,2]
[340657364,1729608654224,-1032.21,0.00016712,2]
[340657365,1729608654233,-916.12,0.00016712,2]
[340657366,1729608654242,-500.0,0.00016712,2]
[340657367,1729608654252,-151.0,0.00016712,2]
[340657368,1729608654261,-500.0,0.00016712,2]
[340657369,1729608654271,-500.0,0.00016712,2]
[340657370,1729608654280,-530.55,0.00016712,2]
[340657371,1729608654289,-500.0,0.00016712,2]
[340657372,1729608654298,-687.75,0.00016712,2]
[340657373,1729608654308,-151.0,0.00016712,2]
[340657374,1729608654318,-500.0,0.00016712,2]
[340657375,1729608654329,-152.31985113,0.00016712,2]
[340657376,1729608654339,-500.0,0.00016712,2]
[340657377,1729608654349,-500.0,0.00016712,2]
[340657378,1729608654358,-582.19,0.00016712,2]
[340657379,1729608654371,-500.0,0.00016712,2]
[340657380,1729608654380,-500.0,0.00016712,2]
[340657381,1729608654390,-539.14,0.00016712,2]
[340657382,1729608654399,-500.0,0.00016712,2]
[340657383,1729608654409,-500.0,0.00016712,2]
[340657384,1729608654419,-151.0,0.00016712,2]
[340657385,1729608654428,-500.0,0.00016712,2]
[340657386,1729608654437,-500.0,0.00016712,2]
[340657387,1729608654448,-500.0,0.00016712,2]
[340657388,1729608654457,-500.0,0.00016712,2]
[340657389,1729608654467,-577.41,0.00016712,2]
[340657390,1729608654479,-500.0,0.00016712,2]
[340657391,1729608654489,-500.0,0.00016712,2]
[340657392,1729608654499,-151.0,0.00016712,2]
[340657393,1729608654509,-762.21,0.00016712,2]
[340657394,1729608654519,-156.87754066,0.00016712,2]
[340657395,1729608654528,-500.0,0.00016712,2]
[340657396,1729608654539,-500.0,0.00016712,2]
[340657397,1729608654550,-500.0,0.00016712,2]
[340657398,1729608654559,-500.0,0.00016712,2]
[340657399,1729608654569,-500.0,0.00016712,2]
[340657400,1729608654578,-500.0,0.00016712,2]
[340657401,1729608654587,-616.37,0.00016712,2]
[340657402,1729608654597,-1020.25,0.00016712,2]
[340657403,1729608654606,-151.0,0.00016712,2]
[340657404,1729608654615,-500.0,0.00016712,2]
[340657405,1729608654625,-500.0,0.00016712,2]
[340657406,1729608654635,-500.0,0.00016712,2]
[340657407,1729608654645,-510.4572275,0.00016712,2]
[340657408,1729608654655,-1057.03,0.00016712,2]
[340657409,1729608654665,-500.0,0.00016712,2]
[340657410,1729608654674,-151.0,0.00016712,2]
[340657411,1729608654684,-500.0,0.00016712,2]
[340657412,1729608654694,-162.494166,0.00016712,2]
[340657413,1729608654704,-494.40838,0.00016712,2]
[340657414,1729608654717,-522.59,0.00016712,2]
[340657415,1729608654728,-162.494166,0.00016712,2]
[340657416,1729608654737,-494.40838,0.00016712,2]
[340657417,1729608654747,-500.0,0.00016712,2]
[340657418,1729608654756,-860.17,0.00016712,2]
[340657419,1729608654768,-151.0,0.00016712,2]
[340657420,1729608654778,-151.0,0.00016712,2]
[340657421,1729608654787,-151.0,0.00016712,2]
[340657422,1729608654797,-500.0,0.00016712,2]
[340657423,1729608654807,-864.69,0.00016712,2]
[340657424,1729608654820,-500.0,0.00016712,2]
[340657425,1729608654829,-1202.76,0.00016712,2]
[340657426,1729608654839,-591.742574,0.00016712,2]
[340657427,1729608654848,-789.04,0.00016712,2]
[340657428,1729608654858,-591.742574,0.00016712,2]
[340657429,1729608654867,-500.0,0.00016712,2]
[340657430,1729608654878,-538.21,0.00016712,2]
[340657431,1729608654887,-631.35,0.00016712,2]
[340657432,1729608654897,-532.35,0.00016712,2]
[340657433,1729608654907,-512.68,0.00016712,2]
[340657434,1729608654917,-555.18,0.00016712,2]
[340657435,1729608654927,-151.0,0.00016712,2]
[340657436,1729608654937,-500.0,0.00016712,2]
[340657437,1729608654948,-500.0,0.00016712,2]
[340657438,1729608654958,-1111.29201,0.00016712,2]
[340657439,1729608654967,-151.0,0.00016712,2]
[340657440,1729608654977,-562.8,0.00016712,2]
[340657441,1729608654987,-1111.29201,0.00016712,2]
[340657442,1729608654996,-532.86,0.00016712,2]
[340657443,1729608655006,-500.0,0.00016712,2]
[340657444,1729608655015,-372.16625662,0.00016712,2]
[340657445,1729608655025,-779.92,0.00016712,2]
[340657446,1729608655034,-624.58,0.00016712,2]
[340657447,1729608655044,-779.03,0.00016712,2]
[340657448,1729608655053,-500.0,0.00016712,2]
[340657449,1729608655063,-500.0,0.00016712,2]
[340657450,1729608655072,-500.0,0.00016712,2]
[340657451,1729608655083,-699.55,0.00016712,2]
[340657452,1729608655092,-505.68,0.00016712,2]
[340657453,1729608655103,-500.0,0.00016712,2]
[340657454,1729608655114,-285.125246,0.00016712,2]
[340657455,1729608655125,-151.0,0.00016712,2]
[340657456,1729608655136,-823.72,0.00016712,2]
[340657457,1729608655147,-151.0,0.00016712,2]
[340657458,1729608655158,-3328.842845,0.00016712,2]
[340657459,1729608655168,-151.0,0.00016712,2]
[340657460,1729608655177,-640.301027,0.00016712,2]
[340657461,1729608655187,-3328.842845,0.00016712,2]
[340657462,1729608655196,-381.51620667,0.00016712,2]
[340657463,1729608655206,-640.301027,0.00016712,2]
[340657464,1729608655215,-500.0,0.00016712,2]
[340657465,1729608655225,-151.0,0.00016712,2]
[340657466,1729608655234,-500.0,0.00016712,2]
[340657467,1729608655245,-151.0,0.00016712,2]
[340657468,1729608655256,-500.0,0.00016712,2]
[340657469,1729608655265,-202.569253,0.00016712,2]
[340657470,1729608655276,-805.27,0.00016712,2]
[340657471,1729608655285,-202.569253,0.00016712,2]
[340657472,1729608655295,-1100.65,0.00016712,2]
[340657473,1729608655304,-1571.11,0.00016712,2]
[340657474,1729608655314,-980.92,0.00016712,2]
[340657475,1729608655323,-200.0,0.00016712,2]
[340657476,1729608655332,-500.0,0.00016712,2]
[340657477,1729608655342,-500.0,0.00016712,2]
[340657478,1729608655351,-798.01,0.00016712,2]
[340657479,1729608655361,-500.0,0.00016712,2]
[340657480,1729608655370,-1314.33,0.00016712,2]
[340657481,1729608655380,-1726.39,0.00016712,2]
[340657482,1729608655389,-776.88,0.00016712,2]
[340657483,1729608655399,-778.58,0.00016712,2]
[340657484,1729608655408,-263.371747,0.00016712,2]
[340657485,1729608655418,-500.0,0.00016712,2]
[340657486,1729608655427,-263.371747,0.00016712,2]
[340657487,1729608655437,-500.0,0.00016712,2]
[340657488,1729608655447,-263.371747,0.00016712,2]
[340657489,1729608655456,-263.371747,0.00016712,2]
[340657490,1729608655466,-287.77831,0.00016712,2]
[340657491,1729608655476,-567.14,0.00016712,2]
[340657492,1729608655485,-683.05,0.00016712,2]
[340657493,1729608655494,-801.67,0.00016712,2]
[340657494,1729608655503,-287.77831,0.00016712,2]
[340657495,1729608655514,-500.0,0.00016712,2]
[340657496,1729608655523,-927.15,0.00016712,2]
[340657497,1729608655533,-572.57,0.00016712,2]
[340657498,1729608655542,-6799.78,0.00016712,2]
[340657499,1729608655552,-678.82,0.00016712,2]
[340657500,1729608655562,-152.632459,0.00016712,2]
[340657501,1729608655571,-152.632459,0.00016712,2]
[340657502,1729608655581,-500.0,0.00016712,2]
[340657503,1729608655590,-571.53,0.00016712,2]
[340657504,1729608655600,-152.632459,0.00016712,2]
[340657505,1729608655609,-152.632459,0.00016712,2]
[340657506,1729608655619,-500.0,0.00016712,2]
[340657507,1729608655629,-1244.47,0.00016712,2]
[340657508,1729608655639,-554.13377966,0.00016712,2]
[340657509,1729608655650,-500.0,0.00016712,2]
[340657510,1729608655660,-504.72,0.00016712,2]
[340657511,1729608655670,-786.55,0.00016712,2]
[340657512,1729608655681,-642.41,0.00016712,2]
[340657513,1729608655690,-500.0,0.00016712,2]
[340657514,1729608655701,-966.55,0.00016712,2]
[340657515,1729608655711,-500.0,0.00016712,2]
[340657516,1729608655723,-1529.93,0.00016712,2]
[340657517,1729608655735,-770.81,0.00016712,2]
[340657518,1729608655745,-500.0,0.00016712,2]
[340657519,1729608655754,-151.0,0.00016712,2]
[340657520,1729608655769,-404.42528,0.00016712,2]
[340657521,1729608655778,-404.42528,0.00016712,2]
[340657522,1729608655789,-546.62,0.00016712,2]
[340657523,1729608655801,-183.772895,0.00016712,2]
[340657524,1729608655810,-404.42528,0.00016712,2]
[340657525,1729608655820,-161.629321,0.00016712,2]
[340657526,1729608655830,-404.42528,0.00016712,2]
[340657527,1729608655841,-161.629321,0.00016712,2]
[340657528,1729608655851,-151.0,0.00016712,2]
[340657529,1729608655861,-151.0,0.00016712,2]
[340657530,1729608655870,-500.0,0.00016712,2]
[340657531,1729608655880,-826.27,0.00016712,2]
[340657532,1729608655890,-548.04,0.00016712,2]
[340657533,1729608655900,-161.629321,0.00016712,2]
[340657534,1729608655910,-161.629321,0.00016712,2]
[340657535,1729608655920,-500.0,0.00016712,2]
[340657536,1729608655932,-774.8,0.00016712,2]
[340657537,1729608655943,-500.0,0.00016712,2]
[340657538,1729608655953,-500.0,0.00016712,2]
[340657539,1729608655963,-151.0,0.00016712,2]
[340657540,1729608655974,-2089.2,0.00016712,2]
[340657541,1729608655987,-236.17837,0.00016712,2]
[340657542,1729608655998,-774.02,0.00016712,2]
[340657543,1729608656008,-500.0,0.00016712,2]
[340657544,1729608656019,-500.0,0.00016712,2]
[340657545,1729608656029,-500.0,0.00016712,2]
[340657546,1729608656038,-559.19,0.00016712,2]
[340657547,1729608656048,-500.0,0.00016712,2]
[340657548,1729608656058,-500.0,0.00016712,2]
[340657549,1729608656069,-500.0,0.00016712,2]
[340657550,1729608656078,-537.03,0.00016712,2]
[340657551,1729608656088,-500.0,0.00016712,2]
[340657552,1729608656099,-1110.8,0.00016712,2]
[340657553,1729608656109,-500.0,0.00016712,2]
[340657554,1729608656119,-1001.286898,0.00016712,2]
[340657555,1729608656128,-1001.286898,0.00016712,2]
[340657556,1729608656139,-921.08,0.00016712,2]
[340657557,1729608656148,-558.44,0.00016712,2]
[340657558,1729608656159,-1001.286898,0.00016712,2]
[340657559,1729608656168,-1001.286898,0.00016712,2]
[340657560,1729608656178,-630.67,0.00016712,2]
[340657561,1729608656188,-3783.04,0.00016712,2]
[340657562,1729608656198,-500.0,0.00016712,2]
[340657563,1729608656208,-975.34,0.00016712,2]
[340657564,1729608656218,-500.0,0.00016712,2]
[340657565,1729608656231,-557.35,0.00016712,2]
[340657566,1729608656242,-549.72,0.00016712,2]
[340657567,1729608656252,-249.840928,0.00016712,2]
[340657568,1729608656263,-249.840928,0.00016712,2]
[340657569,1729608656274,-500.0,0.00016712,2]
[340657570,1729608656284,-151.0,0.00016712,2]
[340657571,1729608656294,-151.0,0.00016712,2]
[340657572,1729608656303,-249.840928,0.00016712,2]
[340657573,1729608656314,-249.840928,0.00016712,2]
[340657574,1729608656325,-710.19,0.00016712,2]
[340657575,1729608656334,-872.91,0.00016712,2]
[340657576,1729608656344,-500.0,0.00016712,2]
[340657577,1729608656354,-500.0,0.00016712,2]
[340657578,1729608656364,-1251.38,0.00016712,2]
[340657579,1729608656374,-204.434466,0.00016712,2]